bitfinex/quotes_BTCUSD_20260126
["timestamp","ask_amount","ask_price","bid_price","bid_amount"]
[1769454593077,0.37725712,88490.0,88476.0,0.02641824]
[1769454593280,0.03,88489.0,88476.0,0.02641824]
[1769454593683,0.03,88489.0,88477.0,0.69864889]
[1769454593907,0.03,88489.0,88478.0,0.02641824]
[1769454594350,0.03,88487.0,88478.0,0.02641824]
[1769454594553,0.03,88484.0,88478.0,0.02641824]
[1769454595501,0.03,88483.0,88478.0,0.02641824]
[1769454595961,0.03,88481.0,88450.0,0.38856294]
[1769454596173,0.03,88479.0,88459.0,0.02450444]
[1769454596385,0.03,88479.0,88462.0,0.69864889]
[1769454596805,0.03,88479.0,88463.0,0.02450444]
[1769454597006,0.03,88477.0,88463.0,0.02450444]
[1769454598931,0.03,88477.0,88451.0,0.69864889]
[1769454599167,0.03,88477.0,88455.0,0.69864889]
[1769454599383,0.03,88477.0,88458.0,0.02450444]
[1769454599597,0.03,88475.0,88460.0,0.02450444]
[1769454599813,0.03,88469.0,88450.0,0.37725712]
[1769454600013,0.03,88459.0,88446.0,0.02450444]
[1769454600723,0.03,88459.0,88446.0,0.72315333]
[1769454601126,0.03,88458.0,88446.0,0.69864889]
[1769454601331,0.03,88458.0,88450.0,0.69864889]
[1769454601556,0.02351401,88470.0,88458.0,0.01]
[1769454601776,0.66871752,88473.0,88458.0,0.01]
[1769454601955,0.66871752,88473.0,88456.0,0.02450444]
[1769454602189,0.03,88472.0,88456.0,0.02450444]
[1769454602381,0.72223153,88472.0,88456.0,0.02450444]
[1769454602582,0.40725712,88470.0,88456.0,0.02450444]
[1769454602778,0.40725712,88470.0,88452.0,0.69864889]
[1769454602779,0.03,88467.0,88452.0,0.69864889]
[1769454603753,0.03,88466.0,88452.0,0.69864889]
[1769454603978,0.03,88466.0,88453.0,0.72315333]
[1769454604214,0.03,88466.0,88454.0,0.02450444]
[1769454604366,0.03,88466.0,88455.0,0.69864889]
[1769454604763,0.03,88465.0,88455.0,0.69864889]
[1769454605792,0.04130326,88470.0,88454.0,0.02450444]
[1769454605967,0.03,88465.0,88446.0,0.02450444]
[1769454606162,0.03,88465.0,88447.0,0.69864889]
[1769454606414,0.03,88465.0,88447.0,0.72315333]
[1769454606623,0.03,88465.0,88447.0,0.71815333]
[1769454606854,0.50059754,88466.0,88447.0,0.71815333]
[1769454607272,0.51190131,88466.0,88447.0,0.71815333]
[1769454607483,0.50059754,88466.0,88447.0,0.71815333]
[1769454607685,0.32669544,88466.0,88447.0,0.71815333]
[1769454607837,0.33799921,88466.0,88447.0,0.71815333]
[1769454608047,0.32669544,88466.0,88447.0,0.71815333]
[1769454608466,0.33799921,88466.0,88447.0,0.71815333]
[1769454608845,0.03,88466.0,88447.0,0.71815333]
[1769454609956,0.40725712,88460.0,88445.0,0.0002356]
[1769454610157,0.03,88458.0,88445.0,0.0002356]
[1769454610368,0.03,88458.0,88445.0,0.69888449]
[1769454610799,0.03,88458.0,88445.0,0.72338893]
[1769454611234,0.01130428,88462.0,88445.0,0.0002356]
[1769454611235,0.37725712,88455.0,88445.0,0.0002356]
[1769454611429,0.03,88446.0,88445.0,0.0002356]
[1769454611675,0.03,88446.0,88420.0,0.37725712]
[1769454611676,0.03,88441.0,88435.0,0.00010554]
[1769454611980,0.05351401,88441.0,88435.0,0.00010554]
[1769454612312,0.34614357,88447.0,88435.0,0.00010554]
[1769454612313,0.38835138,88437.0,88435.0,0.00010554]
[1769454612525,0.05351401,88437.0,88435.0,0.00010554]
[1769454612928,0.03,88437.0,88435.0,0.00010554]
[1769454613330,0.03,88436.0,88435.0,0.00010554]
[1769454614575,0.001,88437.0,88436.0,0.01]
[1769454615024,0.001,88437.0,88435.0,0.00010554]
[1769454615188,0.19727401,88447.0,88435.0,0.00010554]
[1769454615535,0.03,88445.0,88435.0,0.00010554]
[1769454616497,0.001,88436.0,88435.0,0.00010554]
[1769454616710,0.03,88444.0,88435.0,0.69875443]
[1769454616917,0.17376,88456.0,88444.0,0.009]
[1769454617158,0.17376,88456.0,88441.0,0.69864889]
[1769454617359,0.001,88445.0,88441.0,0.69864889]
[1769454617567,0.17376,88456.0,88435.0,0.00010554]
[1769454617568,0.17376,88456.0,88437.0,0.69864889]
[1769454617908,0.17376,88456.0,88442.0,0.69864889]
[1769454617909,0.03,88455.0,88442.0,0.69864889]
[1769454618963,0.03,88455.0,88440.0,0.37709404]
[1769454618964,0.03,88455.0,88444.0,0.63536348]
[1769454619167,0.03,88455.0,88444.0,0.65952646]
[1769454619641,0.03,88462.0,88447.0,0.63536348]
[1769454619849,0.03,88462.0,88445.0,0.37709404]
[1769454619850,0.03,88462.0,88455.0,0.008]
[1769454620068,0.02370762,88471.0,88455.0,0.6631156]
[1769454620263,0.02370762,88471.0,88455.0,0.64336348]
[1769454620705,0.05370762,88470.0,88455.0,0.63536348]
[1769454621290,0.43080166,88470.0,88455.0,0.63536348]
[1769454621694,0.43090152,88470.0,88455.0,0.63536348]
[1769454622146,0.47066286,88470.0,88455.0,0.63536348]
[1769454622522,0.03,88468.0,88455.0,0.63536348]
[1769454622720,0.03009986,88468.0,88455.0,0.63536348]
[1769454623272,0.05370762,88466.0,88442.0,0.02416298]
[1769454623448,0.03,88464.0,88445.0,0.63536348]
[1769454623650,0.03,88464.0,88447.0,0.63536348]
[1769454623859,0.03,88464.0,88448.0,0.02416298]
[1769454624060,0.03,88464.0,88449.0,0.63536348]
[1769454628124,0.03,88463.0,88449.0,0.63536348]
[1769454628885,0.37709404,88470.0,88452.0,0.02416298]
[1769454629076,0.19750762,88473.0,88453.0,0.63536348]
[1769454629269,0.03,88472.0,88453.0,0.63536348]
[1769454629535,0.03,88472.0,88453.0,0.65952646]
[1769454630809,0.0002054,88478.0,88460.0,0.37709404]
[1769454630981,0.0002054,88478.0,88465.0,0.63536348]
[1769454631186,0.0002054,88478.0,88467.0,0.63536348]
[1769454631615,0.0002054,88491.0,88478.0,0.0002054]
[1769454631821,0.0002054,88491.0,88478.0,0.65973186]
[1769454632636,0.0002054,88491.0,88478.0,0.63556888]
[1769454632841,9.32e-05,88496.0,88480.0,0.65952646]
[1769454633228,9.32e-05,88496.0,88480.0,0.63536348]
[1769454633433,0.02380082,88496.0,88480.0,0.63536348]
[1769454633815,0.02370762,88495.0,88476.0,0.63536348]
[1769454634375,0.02370762,88494.0,88476.0,0.63536348]
[1769454634945,0.02370762,88492.0,88475.0,0.02416298]
[1769454635151,0.02370762,88491.0,88475.0,0.02416298]
[1769454635749,0.02370762,88491.0,88475.0,0.65952646]
[1769454635917,0.09845769,88490.0,88475.0,0.65952646]
[1769454638587,0.02370762,88491.0,88475.0,0.65952646]
[1769454638885,0.01130071,88490.0,88475.0,0.02416298]
[1769454639089,0.099,88471.0,88442.0,0.02505666]
[1769454639274,0.02370762,88468.0,88447.0,0.63536348]
[1769454639510,0.099,88465.0,88447.0,0.63536348]
[1769454639721,0.02370762,88464.0,88447.0,0.63536348]
[1769454640462,0.17376,88470.0,88450.0,0.37709404]
[1769454640663,0.17376,88470.0,88450.0,0.40125702]
[1769454640840,0.03,88469.0,88453.0,0.63555578]
[1769454641288,0.05370762,88469.0,88453.0,0.63555578]
[1769454641491,0.03,88469.0,88453.0,0.63555578]
[1769454641712,0.03,88467.0,88453.0,0.63555578]
[1769454642335,0.03,88467.0,88453.0,0.0001923]
[1769454642538,0.03,88465.0,88453.0,0.0001923]
[1769454653879,0.03,88464.0,88453.0,0.0001923]
[1769454654097,0.03,88464.0,88448.0,0.63536348]
[1769454654826,0.03,88462.0,88448.0,0.63536348]
[1769454655531,0.6638318,88461.0,88440.0,0.37709404]
[1769454655739,0.02301198,88453.0,88436.0,0.0002855]
[1769454655961,0.02301198,88443.0,88436.0,0.0002855]
[1769454656162,0.03,88438.0,88423.0,0.67708644]
[1769454656336,0.03,88436.0,88421.0,0.219]
[1769454656540,0.03,88436.0,88411.0,0.1589108]
[1769454656541,0.03,88430.0,88410.0,0.37709404]
[1769454656749,0.05301198,88428.0,88410.0,0.37709404]
[1769454657113,0.05301198,88428.0,88415.0,0.67708644]
[1769454657387,0.05301198,88428.0,88407.0,0.06786788]
[1769454657388,0.02301198,88414.0,88385.0,0.0002855]
[1769454657612,0.02301198,88395.0,88385.0,0.0002855]
[1769454657846,0.03,88387.0,88380.0,0.005896]
[1769454658054,0.03,88387.0,88372.0,0.72008043]
[1769454658260,0.03,88387.0,88372.0,0.71790022]
[1769454659729,0.03,88387.0,88380.0,0.001]
[1769454660112,0.17029645,88394.0,88372.0,0.74065314]
[1769454660113,0.03,88386.0,88372.0,0.74065314]
[1769454660328,0.03,88386.0,88373.0,0.02275292]
[1769454660535,0.03,88386.0,88374.0,0.67708644]
[1769454661147,0.03,88385.0,88374.0,0.67708644]
[1769454662249,0.03,88384.0,88374.0,0.67708644]
[1769454662832,0.03,88384.0,88374.0,0.67808644]
[1769454663036,0.02301198,88408.0,88384.0,0.00019229]
[1769454663259,0.03,88405.0,88384.0,0.00019229]
[1769454663462,0.01131106,88409.0,88384.0,0.00019229]
[1769454663463,0.05301198,88399.0,88384.0,0.00019229]
[1769454663645,0.03,88397.0,88384.0,0.00019229]
[1769454665243,0.03,88396.0,88385.0,0.67708644]
[1769454666300,0.03,88395.0,88385.0,0.67708644]
[1769454666845,0.02301198,88402.0,88385.0,0.67708644]
[1769454667272,0.02301198,88402.0,88383.0,0.02275292]
[1769454667273,0.02301198,88413.0,88389.0,0.02275292]
[1769454667472,0.05301198,88409.0,88389.0,0.69983936]
[1769454667621,0.03,88407.0,88389.0,0.69983936]
[1769454667825,0.05301198,88407.0,88389.0,0.69983936]
[1769454668227,0.22330843,88407.0,88389.0,0.69983936]
[1769454668464,0.03,88405.0,88389.0,0.69983936]
[1769454669029,0.03,88405.0,88384.0,0.04528]
[1769454669030,0.03,88405.0,88385.0,0.001]
[1769454669427,0.03,88403.0,88385.0,0.001]
[1769454669593,0.03,88403.0,88385.0,0.69983936]
[1769454669773,0.03,88401.0,88385.0,0.69983936]
[1769454670468,0.03,88401.0,88386.0,0.69983936]
[1769454672014,0.03,88400.0,88386.0,0.69983936]
[1769454672211,0.03,88400.0,88387.0,0.69983936]
[1769454672418,0.02301198,88405.0,88389.0,0.69983936]
[1769454672616,0.18160623,88419.0,88390.0,0.02275292]
[1769454672971,0.17029645,88415.0,88394.0,0.67708644]
[1769454673161,0.05301198,88414.0,88394.0,0.69983936]
[1769454673374,0.03,88412.0,88394.0,0.69983936]
[1769454673578,0.03,88412.0,88395.0,0.02275292]
[1769454673781,0.03,88412.0,88396.0,0.67708644]
[1769454673930,0.03,88410.0,88396.0,0.67708644]
[1769454675073,0.03,88409.0,88399.0,0.02275292]
[1769454675215,0.03,88409.0,88400.0,0.17388]
[1769454676049,0.03,88413.0,88400.0,0.17388]
[1769454677105,0.03,88410.0,88400.0,0.17388]
[1769454677311,0.03,88407.0,88400.0,0.14005942]
[1769454677485,0.20029645,88405.0,88400.0,0.14005942]
[1769454680824,0.18160905,88397.0,88362.0,0.01131708]
[1769454681043,0.03,88388.0,88382.0,0.04528]
[1769454681251,0.03,88384.0,88382.0,0.04528]
[1769454682343,0.0247695,88387.0,88384.0,0.01]
[1769454682814,0.19506595,88387.0,88384.0,0.01]
[1769454683025,0.19506595,88396.0,88384.0,0.01]
[1769454683231,0.19506595,88396.0,88382.0,0.04528]
[1769454683438,0.03,88393.0,88382.0,0.04528]
[1769454684946,0.00478265,88396.0,88382.0,0.04528]
[1769454685160,0.00170296,88395.0,88382.0,0.04528]
[1769454685496,0.03170296,88395.0,88382.0,0.04528]
[1769454685722,0.03170296,88395.0,88383.0,0.00697223]
[1769454685941,0.03170296,88395.0,88378.0,0.02444225]
[1769454685942,0.03,88393.0,88378.0,0.02444225]
[1769454686182,0.03,88393.0,88379.0,0.02444225]
[1769454687008,0.00170296,88395.0,88379.0,0.02444225]
[1769454687837,0.47198212,88400.0,88379.0,0.02444225]
[1769454688030,0.45232455,88433.0,88382.0,0.02499999]
[1769454688031,0.03,88406.0,88382.0,0.02499999]
[1769454688334,0.03,88403.0,88385.0,0.02724844]
[1769454688468,0.03,88403.0,88386.0,0.02724844]
[1769454688666,0.03,88403.0,88388.0,0.02724844]
[1769454689266,0.47198212,88410.0,88388.0,0.02724844]
[1769454689267,0.03,88402.0,88388.0,0.02724844]
[1769454689494,0.03,88402.0,88376.0,0.04528]
[1769454689495,0.03,88381.0,88360.0,0.0003749]
[1769454689696,0.03,88379.0,88365.0,0.02724844]
[1769454689942,0.03,88379.0,88369.0,0.02724844]
[1769454690692,0.01131311,88393.0,88371.0,0.02724844]
[1769454690898,0.03,88387.0,88371.0,0.02724844]
[1769454691437,0.03,88385.0,88371.0,0.02724844]
[1769454691970,0.41577768,88400.0,88371.0,0.02724844]
[1769454692180,0.03,88390.0,88371.0,0.02724844]
[1769454692797,0.04131349,88390.0,88371.0,0.02724844]
[1769454692999,0.03,88390.0,88371.0,0.02724844]
[1769454693201,0.03,88390.0,88372.0,0.02724844]
[1769454693414,0.03,88389.0,88372.0,0.02724844]
[1769454694358,0.08277767,88389.0,88372.0,0.02724844]
[1769454694537,0.04131362,88389.0,88372.0,0.02724844]
[1769454694739,0.03,88389.0,88372.0,0.02724844]
[1769454695108,0.03,88388.0,88372.0,0.02724844]
[1769454696012,0.03,88387.0,88372.0,0.02724844]
[1769454696255,0.01131132,88407.0,88387.0,0.01]
[1769454696462,0.01131119,88408.0,88387.0,0.01]
[1769454696463,0.0678677,88408.0,88389.0,0.02444225]
[1769454696663,0.47198212,88400.0,88387.0,0.01]
[1769454696872,0.47198212,88400.0,88386.0,0.04528]
[1769454697042,0.03,88402.0,88386.0,0.04528]
[1769454697493,0.03,88400.0,88386.0,0.04528]
[1769454698224,0.05036294,88400.0,88386.0,0.04528]
[1769454698654,0.03,88402.0,88386.0,0.04528]
[1769454699150,0.03,88402.0,88385.0,0.24364225]
[1769454700203,0.03,88401.0,88385.0,0.24364225]
[1769454701285,0.03,88400.0,88387.0,0.02444225]
[1769454701432,0.03,88400.0,88388.0,0.69424931]
[1769454701635,0.03,88400.0,88389.0,0.02444225]
[1769454702258,0.03,88407.0,88389.0,0.02444225]
[1769454703966,0.03,88407.0,88390.0,0.69424931]
[1769454704172,0.04131132,88407.0,88391.0,0.02444225]
[1769454704368,0.03,88405.0,88391.0,0.02444225]
[1769454704570,0.03,88399.0,88385.0,0.2192]
[1769454704793,0.0547695,88399.0,88385.0,0.2192]
[1769454706408,0.03,88401.0,88385.0,0.2192]
[1769454706643,0.03,88396.0,88385.0,0.2192]
[1769454707236,0.08656698,88391.0,88382.0,0.2192]
[1769454707432,0.03,88391.0,88382.0,0.2192]
[1769454708205,0.03,88390.0,88382.0,0.2192]
[1769454708416,0.03,88388.0,88376.0,0.17392]
[1769454708633,0.03,88388.0,88374.0,0.17392]
[1769454709110,0.03,88388.0,88374.0,0.19676013]
[1769454709549,0.03,88387.0,88374.0,0.19676013]
[1769454709752,0.03,88387.0,88374.0,0.17392]
[1769454710001,0.03,88387.0,88375.0,0.02284013]
[1769454710567,0.03,88386.0,88375.0,0.02284013]
[1769454711592,0.03,88385.0,88375.0,0.02284013]
[1769454712675,0.03,88384.0,88375.0,0.02284013]
[1769454713790,0.03,88383.0,88375.0,0.02284013]
[1769454714884,0.03,88382.0,88375.0,0.02284013]
[1769454715592,0.06787455,88399.0,88382.0,0.01]
[1769454715804,0.03,88396.0,88382.0,0.01]
[1769454717348,0.031,88396.0,88382.0,0.01]
[1769454718069,0.05655939,88403.0,88382.0,0.01]
[1769454718070,0.09044929,88456.0,88402.0,0.05801512]
[1769454718311,0.68376805,88496.0,88470.0,0.02499998]
[1769454718486,0.68376805,88496.0,88450.0,0.47198212]
[1769454718487,0.68376805,88496.0,88473.0,0.02499998]
[1769454718488,0.62145744,88496.0,88473.0,0.02499998]
[1769454718638,0.62145744,88496.0,88475.0,0.02499998]
[1769454718996,0.64534928,88496.0,88477.0,0.02284013]
[1769454719228,0.71376805,88495.0,88485.0,0.08966885]
[1769454719404,0.03,88495.0,88482.0,0.08966885]
[1769454719610,0.68376805,88502.0,88483.0,0.08966885]
[1769454719761,0.02389184,88517.0,88488.0,0.01130096]
[1769454720034,0.51726212,88530.0,88488.0,0.08366885]
[1769454720035,0.68376805,88499.0,88488.0,0.08366885]
[1769454720211,0.03,88471.0,88468.0,0.02284013]
[1769454720416,0.03,88471.0,88459.0,0.04528]
[1769454721212,0.03,88471.0,88444.0,0.22613132]
[1769454721213,0.03,88469.0,88443.0,0.04528]
[1769454721424,0.03,88461.0,88443.0,0.04528]
[1769454721638,0.03,88457.0,88443.0,0.04528]
[1769454721843,0.03,88457.0,88444.0,0.02284013]
[1769454722267,0.71376805,88457.0,88444.0,0.02284013]
[1769454722655,0.71376805,88457.0,88444.0,0.02295813]
[1769454722856,0.75435274,88457.0,88444.0,0.02295813]
[1769454723497,0.02389184,88456.0,88426.0,0.02284013]
[1769454723696,0.75435274,88457.0,88420.0,0.01130965]
[1769454723697,0.03,88447.0,88427.0,0.01130876]
[1769454723946,0.03,88445.0,88431.0,0.02284013]
[1769454724352,0.03,88445.0,88430.0,0.02284013]
[1769454724556,0.68376805,88440.0,88423.0,0.01130927]
[1769454724758,0.02389184,88443.0,88421.0,0.02284013]
[1769454724759,0.71376805,88439.0,88421.0,0.02284013]
[1769454725045,0.71376805,88439.0,88423.0,0.02284013]
[1769454725561,0.71376805,88439.0,88424.0,0.01130914]
[1769454725693,0.71376805,88439.0,88425.0,0.01130901]
[1769454725898,0.71376805,88439.0,88423.0,0.0341494]
[1769454726399,0.03,88437.0,88423.0,0.02284013]
[1769454726602,0.03,88435.0,88423.0,0.02284013]
[1769454726804,0.03,88435.0,88428.0,0.01130863]
[1769454727033,0.03,88435.0,88427.0,0.01130876]
[1769454727206,0.03,88435.0,88425.0,0.01130901]
[1769454727404,0.03,88435.0,88429.0,0.0113085]
[1769454727647,0.04058469,88457.0,88426.0,0.01130889]
[1769454727648,0.03,88448.0,88435.0,0.01]
[1769454727868,0.71376805,88448.0,88435.0,0.01]
[1769454728245,0.03,88448.0,88439.0,0.01130722]
[1769454728619,0.03,88447.0,88438.0,0.02284013]
[1769454729536,0.03,88453.0,88438.0,0.02284013]
[1769454729751,0.71376805,88451.0,88438.0,0.02284013]
[1769454730284,0.71376805,88451.0,88440.0,0.0113071]
[1769454730484,0.03,88451.0,88441.0,0.02284013]
[1769454730705,0.03,88450.0,88441.0,0.02284013]
[1769454731035,0.03,88450.0,88442.0,0.11116502]
[1769454731258,0.03,88450.0,88443.0,0.11116502]
[1769454731490,0.03,88450.0,88436.0,0.02284013]
[1769454731701,0.03,88442.0,88419.0,0.14581306]
[1769454731908,0.03,88434.0,88418.0,0.01130991]
[1769454732107,0.03,88432.0,88419.0,0.01130978]
[1769454732307,0.03,88432.0,88426.0,0.01130889]
[1769454732426,0.68376805,88440.0,88432.0,0.01]
[1769454732629,0.68376805,88440.0,88427.0,0.01130876]
[1769454732831,0.68376805,88440.0,88425.0,0.05654463]
[1769454732832,0.68376805,88440.0,88425.0,0.01130901]
[1769454733050,0.03,88439.0,88423.0,0.01130927]
[1769454733412,0.03,88437.0,88424.0,0.03414927]
[1769454733606,0.03,88437.0,88425.0,0.01130901]
[1769454733841,0.03,88437.0,88424.0,0.03414927]
[1769454733991,0.03,88437.0,88425.0,0.01130901]
[1769454734518,0.03,88437.0,88424.0,0.03414927]
[1769454734680,0.03,88437.0,88425.0,0.01130901]
[1769454734856,0.03,88437.0,88426.0,0.01130889]
[1769454735708,0.03,88437.0,88425.0,0.01130901]
[1769454735919,0.03,88437.0,88424.0,0.03414927]
[1769454736697,0.03,88437.0,88425.0,0.01130901]
[1769454736899,0.03,88437.0,88424.0,0.02284013]
[1769454738752,0.03,88437.0,88424.0,0.03414927]
[1769454738960,0.03,88437.0,88424.0,0.02284013]
[1769454739156,0.03,88437.0,88424.0,0.03414927]
[1769454739663,0.03,88437.0,88425.0,0.01130901]
[1769454740061,0.03,88437.0,88424.0,0.03414927]
[1769454740488,0.03,88437.0,88424.0,0.02284013]
[1769454740717,0.03,88437.0,88424.0,0.03414927]
[1769454741114,0.03,88437.0,88424.0,0.02284013]
[1769454741621,0.50213807,88438.0,88424.0,0.09069498]
[1769454741856,0.50213807,88438.0,88424.0,0.03414927]
[1769454742095,0.50213807,88438.0,88427.0,0.01130876]
[1769454742345,0.50213807,88438.0,88428.0,0.01130863]
[1769454742561,0.50213807,88438.0,88429.0,0.0113085]
[1769454742730,0.46161564,88443.0,88429.0,0.0113085]
[1769454743329,0.46161564,88443.0,88428.0,0.09174873]
[1769454743661,0.46161564,88443.0,88429.0,0.12283154]
[1769454743794,0.46161564,88443.0,88431.0,0.02389738]
[1769454744002,0.46161564,88443.0,88432.0,0.11152304]
[1769454744204,0.46161564,88443.0,88433.0,0.11152304]
[1769454744411,0.46161564,88443.0,88434.0,0.11152304]
[1769454744644,0.46161564,88443.0,88431.0,0.02389738]
[1769454744645,0.46161564,88443.0,88435.0,0.11152304]
[1769454744844,0.46161564,88443.0,88436.0,0.11152304]
[1769454745053,0.46161564,88443.0,88437.0,0.11152304]
[1769454745289,0.46161564,88443.0,88438.0,0.11152304]
[1769454745563,0.34836517,88443.0,88439.0,0.11152304]
[1769454745787,0.03,88452.0,88440.0,0.11152304]
[1769454745968,0.67818094,88452.0,88441.0,0.11152304]
[1769454746146,0.03,88448.0,88442.0,0.11152304]
[1769454746493,0.03,88444.0,88431.0,0.02389738]
[1769454746745,0.03,88444.0,88431.0,0.10865411]
[1769454747179,0.03,88444.0,88432.0,0.02389738]
[1769454747629,0.03,88443.0,88432.0,0.02389738]
[1769454748465,0.64818094,88447.0,88432.0,0.02389738]
[1769454748698,0.67818094,88446.0,88432.0,0.02389738]
[1769454748952,0.03,88444.0,88428.0,0.13450328]
[1769454749167,0.03,88438.0,88428.0,0.13450328]
[1769454749388,0.03,88436.0,88428.0,0.13450328]
[1769454749827,0.03,88436.0,88429.0,0.13450328]
[1769454750059,0.06973575,88457.0,88438.0,0.02389738]
[1769454750334,0.67263669,88457.0,88438.0,0.02389738]
[1769454750555,0.03,88456.0,88439.0,0.02389738]
[1769454751231,0.67818094,88456.0,88440.0,0.02389738]
[1769454751892,0.74844461,88456.0,88440.0,0.02389738]
[1769454752949,0.74844461,88456.0,88440.0,0.15840066]
[1769454754462,0.74844461,88456.0,88440.0,0.02389738]
[1769454754674,0.67818094,88456.0,88442.0,0.13450328]
[1769454754874,0.67818094,88456.0,88443.0,0.02389738]
[1769454756402,0.67818094,88456.0,88446.0,0.13450328]
[1769454758545,0.47832273,88456.0,88447.0,0.11221478]
[1769454758755,0.47832273,88456.0,88448.0,0.11221478]
[1769454758964,0.47832273,88456.0,88449.0,0.11221478]
[1769454759175,0.47832273,88456.0,88450.0,0.11221478]
[1769454759382,0.47832273,88456.0,88451.0,0.11221478]
[1769454759585,0.67818094,88453.0,88452.0,0.11221478]
[1769454760437,0.55939265,88453.0,88452.0,0.11221478]
[1769454762257,0.55939265,88453.0,88452.0,0.07231478]
[1769454762473,0.55939265,88453.0,88452.0,0.05159963]
[1769454763323,0.63804091,88453.0,88433.0,0.13450328]
[1769454763527,0.63804091,88453.0,88430.0,0.13450328]
[1769454763528,0.03,88447.0,88430.0,0.13450328]
[1769454763703,0.03,88441.0,88426.0,0.13450328]
[1769454763910,0.03,88439.0,88425.0,0.30830328]
[1769454764101,0.03,88437.0,88425.0,0.30830328]
[1769454764309,0.03,88437.0,88425.0,0.1738]
[1769454765075,0.03,88439.0,88425.0,0.1738]
[1769454765591,0.03,88439.0,88425.0,0.19769738]
[1769454767784,0.03,88438.0,88425.0,0.1738]
[1769454767978,0.59631142,88447.0,88428.0,0.67665229]
[1769454768157,0.59631142,88447.0,88429.0,0.02389738]
[1769454768353,0.59631142,88447.0,88429.0,0.19769738]
[1769454768873,0.03,88446.0,88429.0,0.19769738]
[1769454769256,0.04156317,88446.0,88429.0,0.19769738]
[1769454769775,0.57185567,88445.0,88429.0,0.19769738]
[1769454769957,0.03,88444.0,88429.0,0.19769738]
[1769454771590,0.03,88443.0,88429.0,0.19769738]
[1769454772196,0.57185567,88444.0,88443.0,0.00015975]
[1769454772365,0.59597582,88444.0,88443.0,0.00015975]
[1769454772581,0.59565632,88444.0,88429.0,0.19769738]
[1769454772795,0.59565951,88449.0,88429.0,0.84798133]
[1769454773001,0.60153936,88448.0,88429.0,0.84798133]
[1769454773461,0.60153936,88448.0,88430.0,0.13450328]
[1769454775508,0.60153936,88448.0,88431.0,0.11223077]
[1769454775727,0.03,88446.0,88432.0,0.11223077]
[1769454775938,0.03,88446.0,88433.0,0.11223077]
[1769454776147,0.03,88446.0,88434.0,0.11223077]
[1769454776345,0.03,88446.0,88435.0,0.11223077]
[1769454776549,0.03,88446.0,88436.0,0.11223077]
[1769454776773,0.03,88446.0,88437.0,0.11223077]
[1769454776963,0.03,88446.0,88438.0,0.11223077]
[1769454777207,0.03,88447.0,88439.0,0.11223077]
[1769454777451,0.03,88447.0,88440.0,0.11223077]
[1769454777645,0.60153936,88447.0,88441.0,0.11223077]
[1769454777842,0.03,88445.0,88442.0,0.11223077]
[1769454778050,0.03,88443.0,88429.0,0.98248461]
[1769454778263,0.03,88443.0,88430.0,0.11222892]
[1769454778474,0.03,88443.0,88429.0,0.84798133]
[1769454779991,0.57153936,88444.0,88443.0,0.00015975]
[1769454780197,0.57153936,88444.0,88429.0,0.67418133]
[1769454780416,0.57153936,88444.0,88431.0,0.1738]
[1769454780700,0.57153936,88452.0,88433.0,0.65028395]
[1769454780908,0.02412015,88455.0,88437.0,0.65028395]
[1769454781122,0.02412015,88455.0,88437.0,0.67318727]
[1769454781334,0.37727654,88450.0,88437.0,0.67318727]
[1769454781750,0.03,88449.0,88437.0,0.67318727]
[1769454782216,0.03,88449.0,88431.0,0.1738]
[1769454782217,0.03,88445.0,88431.0,0.1738]
[1769454782445,0.03,88440.0,88427.0,0.02290332]
[1769454782666,0.37727654,88441.0,88421.0,0.04528]
[1769454782667,0.03,88434.0,88421.0,0.04528]
[1769454782886,0.37727654,88441.0,88406.0,0.04528]
[1769454782887,0.03,88423.0,88406.0,0.04528]
[1769454783116,0.03,88419.0,88412.0,0.0001908]
[1769454783325,0.03,88419.0,88406.0,0.04528]
[1769454783326,0.02412015,88410.0,88406.0,0.00651217]
[1769454783539,0.65399704,88409.0,88402.0,0.1738]
[1769454783761,0.65399704,88409.0,88390.0,0.65066525]
[1769454783977,0.65399704,88409.0,88391.0,0.65028395]
[1769454784209,0.66531759,88409.0,88392.0,0.65028395]
[1769454784460,0.66531759,88409.0,88392.0,0.67318727]
[1769454785105,0.65399704,88409.0,88392.0,0.67318727]
[1769454785328,0.03,88421.0,88409.0,0.01]
[1769454785544,0.62987689,88417.0,88409.0,0.01]
[1769454785972,0.62987689,88417.0,88398.0,0.02290332]
[1769454787114,0.65399704,88417.0,88398.0,0.02290332]
[1769454787334,0.62367754,88417.0,88398.0,0.02290332]
[1769454787762,0.59955739,88417.0,88398.0,0.02290332]
[1769454787982,0.62956059,88415.0,88398.0,0.02290332]
[1769454789577,0.62956059,88415.0,88399.0,0.02290332]
[1769454790721,0.65368074,88415.0,88399.0,0.02290332]
[1769454796534,0.65336783,88415.0,88399.0,0.02290332]
[1769454797043,0.03,88414.0,88401.0,0.02290332]
[1769454797258,0.03,88414.0,88402.0,0.02290332]
[1769454798239,0.02412015,88423.0,88402.0,0.02290332]
[1769454798240,0.03,88413.0,88402.0,0.02290332]
[1769454798629,0.1738,88426.0,88404.0,0.02253043]
[1769454798854,0.1738,88426.0,88407.0,0.63550592]
[1769454799011,0.1738,88426.0,88409.0,0.02253043]
[1769454799210,0.03,88425.0,88409.0,0.02253043]
[1769454799833,0.03,88423.0,88409.0,0.02253043]
[1769454800165,0.03,88421.0,88403.0,0.65636742]
[1769454800721,0.12743739,88421.0,88403.0,0.65636742]
[1769454800943,0.03,88421.0,88403.0,0.65636742]
[1769454801143,0.03,88419.0,88403.0,0.65636742]
[1769454801747,0.03,88417.0,88390.0,0.49623088]
[1769454801954,0.06785681,88422.0,88396.0,0.17388]
[1769454801955,0.62925081,88415.0,88396.0,0.17388]
[1769454802128,0.03,88413.0,88396.0,0.17388]
[1769454802327,0.03,88413.0,88398.0,0.0240117]
[1769454803169,0.03,88413.0,88398.0,0.65636742]
[1769454803601,0.03,88413.0,88400.0,0.37749239]
[1769454804030,0.03,88412.0,88401.0,0.63235572]
[1769454804233,0.03,88412.0,88402.0,0.0240117]